[Event "Early-Titled-Tuesday-Blitz-May-14-2024"]
[Site "Chess.com"]
[Date "2024.05.14"]
[Round "3"]
[White "JeFumeDesClopes"]
[Black "wild3000"]
[Result "1-0"]
[WhiteElo "2712"]
[BlackElo "2497"]
[TimeControl "180+1"]
[EndTime "8:29:50 PDT"]
[Termination "JeFumeDesClopes won by resignation"]

1. Nf3 {[%clk 0:03:00.9]} 1... d5 {[%clk 0:01:44]} 2. c4 {[%clk 0:02:50.1]} 2...
e6 {[%clk 0:01:43.4]} 3. g3 {[%clk 0:02:48.9]} 3... Nf6 {[%clk 0:01:42.8]} 4.
Bg2 {[%clk 0:02:48.9]} 4... Be7 {[%clk 0:01:43.5]} 5. O-O {[%clk 0:02:49.4]}
5... O-O {[%clk 0:01:44.1]} 6. b3 {[%clk 0:02:50]} 6... b6 {[%clk 0:01:43.4]} 7.
d4 {[%clk 0:02:49.1]} 7... Bb7 {[%clk 0:01:43.5]} 8. Nc3 {[%clk 0:02:48.9]} 8...
c5 {[%clk 0:01:43.7]} 9. dxc5 {[%clk 0:02:46.4]} 9... Bxc5 {[%clk 0:01:42.5]}
10. Ne1 {[%clk 0:02:45.7]} 10... Na6 {[%clk 0:01:38.5]} 11. cxd5 {[%clk
0:02:45.2]} 11... Nxd5 {[%clk 0:01:38.1]} 12. Nxd5 {[%clk 0:02:45.1]} 12... Bxd5
{[%clk 0:01:37.6]} 13. Bxd5 {[%clk 0:02:44.7]} 13... Qxd5 {[%clk 0:01:37.2]} 14.
Qxd5 {[%clk 0:02:44.8]} 14... exd5 {[%clk 0:01:37.9]} 15. Nd3 {[%clk 0:02:36.4]}
15... Rfe8 {[%clk 0:01:37.3]} 16. e3 {[%clk 0:01:51.5]} 16... d4 {[%clk
0:01:22.1]} 17. Nxc5 {[%clk 0:01:48.5]} 17... bxc5 {[%clk 0:01:21.1]} 18. Rd1
{[%clk 0:01:43.1]} 18... Nb4 {[%clk 0:01:09.4]} 19. exd4 {[%clk 0:01:41.5]}
19... cxd4 {[%clk 0:01:06.3]} 20. Bb2 {[%clk 0:01:39.7]} 20... Rad8 {[%clk
0:01:00.9]} 21. a3 {[%clk 0:01:34.4]} 21... Nc2 {[%clk 0:00:56.9]} 22. Rac1
{[%clk 0:01:32.3]} 22... d3 {[%clk 0:00:57.2]} 23. Rd2 {[%clk 0:01:24.4]} 23...
h5 {[%clk 0:00:42.3]} 24. Kf1 {[%clk 0:01:19.7]} 24... Kh7 {[%clk 0:00:41]} 25.
Rcd1 {[%clk 0:01:15.3]} 25... Re6 {[%clk 0:00:20.6]} 26. Rxd3 {[%clk 0:01:05.7]}
26... Rde8 {[%clk 0:00:19.8]} 27. R3d2 {[%clk 0:00:57]} 27... Re1+ {[%clk
0:00:18.9]} 28. Rxe1 {[%clk 0:00:55.4]} 28... Nxe1 {[%clk 0:00:19.8]} 29. Re2
{[%clk 0:00:49.7]} 29... Rxe2 {[%clk 0:00:19.6]} 30. Kxe2 {[%clk 0:00:50.6]}
30... Ng2 {[%clk 0:00:20.3]} 31. Bc3 {[%clk 0:00:38.4]} 31... g5 {[%clk
0:00:18]} 32. Kf3 {[%clk 0:00:36.3]} 32... Kg6 {[%clk 0:00:14.8]} 33. Kxg2
{[%clk 0:00:36.3]} 33... Kf5 {[%clk 0:00:15.7]} 34. Kf3 {[%clk 0:00:36.4]} 34...
Ke6 {[%clk 0:00:14.9]} 35. Ke4 {[%clk 0:00:36]} 35... f5+ {[%clk 0:00:15.2]} 36.
Kd4 {[%clk 0:00:36.6]} 36... a6 {[%clk 0:00:15.5]} 37. Kc5 {[%clk 0:00:36.6]}
37... f4 {[%clk 0:00:15.3]} 38. gxf4 {[%clk 0:00:35.3]} 38... g4 {[%clk
0:00:14.9]} 39. b4 {[%clk 0:00:35.2]} 39... Kf5 {[%clk 0:00:13.4]} 40. a4 {[%clk
0:00:35.1]} 40... h4 {[%clk 0:00:12.7]} 41. b5 {[%clk 0:00:35.3]} 41... axb5
{[%clk 0:00:13.1]} 42. axb5 {[%clk 0:00:36.2]} 42... Ke4 {[%clk 0:00:11.9]} 43.
b6 {[%clk 0:00:35.8]} 43... Kf3 {[%clk 0:00:12.2]} 44. Bf6 {[%clk 0:00:33.3]}
44... g3 {[%clk 0:00:08.2]} 45. fxg3 {[%clk 0:00:32.7]} 45... h3 {[%clk
0:00:09.1]} 46. b7 {[%clk 0:00:30.3]} 46... Kg2 {[%clk 0:00:10]} 47. b8=Q {[%clk
0:00:30.3]} 47... Kxh2 {[%clk 0:00:10.9]} 48. Qh8 {[%clk 0:00:29.6]} 48... Kxg3
{[%clk 0:00:10.6]} 49. Be5 {[%clk 0:00:29.3]} 49... Kg2 {[%clk 0:00:07.8]} 50.
f5 {[%clk 0:00:28.8]} 50... h2 {[%clk 0:00:05.7]} 51. Qxh2+ {[%clk 0:00:28.1]}
51... Kf3 {[%clk 0:00:06.6]} 52. Qf4+ {[%clk 0:00:27.8]} 1-0

[Event "Early-Titled-Tuesday-Blitz-May-14-2024"]
[Site "Chess.com"]
[Date "2024.05.14"]
[Round "3"]
[White "Kazmin_Semyon"]
[Black "invisible_s0ul"]
[Result "0-1"]
[WhiteElo "2586"]
[BlackElo "2337"]
[TimeControl "180+1"]
[EndTime "8:29:50 PDT"]
[Termination "invisible_s0ul won on time"]

1. d4 {[%clk 0:03:00.9]} 1... Nf6 {[%clk 0:02:35]} 2. c4 {[%clk 0:03:00.3]} 2...
c6 {[%clk 0:02:29.6]} 3. Bf4 {[%clk 0:02:50.4]} 3... d5 {[%clk 0:02:27.9]} 4. e3
{[%clk 0:02:50.4]} 4... g6 {[%clk 0:02:25.6]} 5. Nc3 {[%clk 0:02:48.1]} 5... Bg7
{[%clk 0:02:26.2]} 6. Nf3 {[%clk 0:02:45.7]} 6... Nbd7 {[%clk 0:02:26.2]} 7.
cxd5 {[%clk 0:02:44.6]} 7... Nxd5 {[%clk 0:02:18.8]} 8. Nxd5 {[%clk 0:02:43.5]}
8... cxd5 {[%clk 0:02:19.5]} 9. Bd3 {[%clk 0:02:36.4]} 9... O-O {[%clk
0:02:14.7]} 10. O-O {[%clk 0:02:36]} 10... Qb6 {[%clk 0:02:08.4]} 11. Qc2 {[%clk
0:02:34.1]} 11... Nf6 {[%clk 0:02:06.3]} 12. h3 {[%clk 0:02:25]} 12... Bd7
{[%clk 0:01:56.9]} 13. Bc7 {[%clk 0:02:17.2]} 13... Qc6 {[%clk 0:01:48]} 14.
Qxc6 {[%clk 0:02:16.9]} 14... Bxc6 {[%clk 0:01:43.6]} 15. Rfc1 {[%clk
0:02:17.3]} 15... Rac8 {[%clk 0:01:43.6]} 16. Bh2 {[%clk 0:02:17.8]} 16... Nd7
{[%clk 0:01:24.4]} 17. b4 {[%clk 0:02:16.1]} 17... b5 {[%clk 0:01:13.5]} 18. Nd2
{[%clk 0:02:02.3]} 18... e5 {[%clk 0:01:09]} 19. Nb3 {[%clk 0:02:01]} 19... Rfe8
{[%clk 0:00:59.4]} 20. Rc2 {[%clk 0:01:53.7]} 20... a6 {[%clk 0:00:54.1]} 21.
Rac1 {[%clk 0:01:48.3]} 21... Bb7 {[%clk 0:00:52.6]} 22. Nc5 {[%clk 0:01:47.2]}
22... Nxc5 {[%clk 0:00:52.6]} 23. dxc5 {[%clk 0:01:44.9]} 23... Bc6 {[%clk
0:00:49.4]} 24. Be2 {[%clk 0:01:37.3]} 24... f5 {[%clk 0:00:45]} 25. Rd1 {[%clk
0:01:28]} 25... Kf7 {[%clk 0:00:44.3]} 26. g4 {[%clk 0:01:04.6]} 26... Red8
{[%clk 0:00:40.8]} 27. Bf3 {[%clk 0:00:53]} 27... Ke6 {[%clk 0:00:34.9]} 28.
Rcd2 {[%clk 0:00:53.1]} 28... e4 {[%clk 0:00:33.9]} 29. Be2 {[%clk 0:00:36.9]}
29... Bc3 {[%clk 0:00:34.2]} 30. Rd4 {[%clk 0:00:32.6]} 30... Bxd4 {[%clk
0:00:32.3]} 31. exd4 {[%clk 0:00:33.1]} 31... Rf8 {[%clk 0:00:31]} 32. Bd6
{[%clk 0:00:31.9]} 32... Rf7 {[%clk 0:00:30.9]} 33. a4 {[%clk 0:00:14.7]} 33...
f4 {[%clk 0:00:27.6]} 34. axb5 {[%clk 0:00:11.4]} 34... axb5 {[%clk 0:00:28.5]}
35. Ra1 {[%clk 0:00:11.9]} 35... h5 {[%clk 0:00:11.6]} 36. gxh5 {[%clk
0:00:10.8]} 36... gxh5 {[%clk 0:00:12]} 37. Bxh5 {[%clk 0:00:11.7]} 37... Rg7+
{[%clk 0:00:09.9]} 38. Kf1 {[%clk 0:00:12.3]} 38... Ra8 {[%clk 0:00:05.3]} 39.
Bg4+ {[%clk 0:00:09.4]} 39... Kf7 {[%clk 0:00:03.1]} 40. Rxa8 {[%clk 0:00:09.3]}
40... Bxa8 {[%clk 0:00:03.9]} 0-1

[Event "Early-Titled-Tuesday-Blitz-May-14-2024"]
[Site "Chess.com"]
[Date "2024.05.14"]
[Round "3"]
[White "chess_sharparchitect"]
[Black "hikaruchija"]
[Result "0-1"]
[WhiteElo "2305"]
[BlackElo "2597"]
[TimeControl "180+1"]
[EndTime "8:29:51 PDT"]
[Termination "hikaruchija won by resignation"]

1. c4 {[%clk 0:03:00.9]} 1... g6 {[%clk 0:02:59.2]} 2. Nc3 {[%clk 0:03:00.6]}
2... Bg7 {[%clk 0:03:00.1]} 3. d4 {[%clk 0:03:00.9]} 3... d6 {[%clk 0:03:00.7]}
4. e4 {[%clk 0:03:00.1]} 4... e5 {[%clk 0:03:01.3]} 5. d5 {[%clk 0:02:57.9]}
5... a5 {[%clk 0:03:00.7]} 6. Be3 {[%clk 0:02:56.3]} 6... Na6 {[%clk 0:03:01]}
7. Nf3 {[%clk 0:02:48.4]} 7... f5 {[%clk 0:02:59.7]} 8. g3 {[%clk 0:02:19.9]}
8... Nf6 {[%clk 0:02:57.1]} 9. Bg2 {[%clk 0:02:20.1]} 9... O-O {[%clk
0:02:50.9]} 10. O-O {[%clk 0:02:06.6]} 10... Ng4 {[%clk 0:02:44.2]} 11. Bg5
{[%clk 0:02:02]} 11... Qe8 {[%clk 0:02:41]} 12. Qd2 {[%clk 0:01:55.3]} 12... h6
{[%clk 0:02:32]} 13. Be3 {[%clk 0:01:38]} 13... Nxe3 {[%clk 0:02:21.5]} 14. fxe3
{[%clk 0:01:34.7]} 14... Nc5 {[%clk 0:02:20.8]} 15. exf5 {[%clk 0:01:32]} 15...
gxf5 {[%clk 0:02:18.2]} 16. Nh4 {[%clk 0:01:30.6]} 16... e4 {[%clk 0:02:11.9]}
17. Nb5 {[%clk 0:01:20.3]} 17... Rf7 {[%clk 0:02:03.4]} 18. Bh3 {[%clk
0:01:13.7]} 18... Qe5 {[%clk 0:01:48.7]} 19. Nd4 {[%clk 0:01:09.2]} 19... Nd3
{[%clk 0:01:27.7]} 20. Nhxf5 {[%clk 0:00:56.5]} 20... Bxf5 {[%clk 0:01:19.2]}
21. Bxf5 {[%clk 0:00:56.4]} 21... Kh8 {[%clk 0:01:18.9]} 22. Be6 {[%clk
0:00:53.1]} 22... Rxf1+ {[%clk 0:01:13.3]} 23. Rxf1 {[%clk 0:00:54]} 23... Qg5
{[%clk 0:01:10.9]} 24. Nf5 {[%clk 0:00:43.4]} 24... Bxb2 {[%clk 0:01:02.8]} 25.
Qg2 {[%clk 0:00:38.9]} 25... Rf8 {[%clk 0:00:46.6]} 26. Qxe4 {[%clk 0:00:38.6]}
26... Ne5 {[%clk 0:00:44.2]} 27. Nh4 {[%clk 0:00:28.8]} 27... Rxf1+ {[%clk
0:00:37.1]} 28. Kxf1 {[%clk 0:00:29.7]} 28... Bc1 {[%clk 0:00:36.5]} 29. Ng6+
{[%clk 0:00:26.9]} 29... Qxg6 {[%clk 0:00:34.9]} 30. Qxg6 {[%clk 0:00:25.9]}
30... Nxg6 {[%clk 0:00:35.8]} 31. Ke2 {[%clk 0:00:26.2]} 31... Ne5 {[%clk
0:00:34.9]} 32. g4 {[%clk 0:00:19.8]} 32... Nxc4 {[%clk 0:00:32.5]} 33. e4
{[%clk 0:00:16.5]} 33... b5 {[%clk 0:00:30.6]} 34. h4 {[%clk 0:00:16.3]} 34...
b4 {[%clk 0:00:30.1]} 35. Kd3 {[%clk 0:00:16.7]} 35... Ne5+ {[%clk 0:00:28.5]}
36. Kc2 {[%clk 0:00:17.1]} 36... Bf4 {[%clk 0:00:28]} 37. g5 {[%clk 0:00:12.6]}
37... hxg5 {[%clk 0:00:26.9]} 38. hxg5 {[%clk 0:00:12.9]} 38... a4 {[%clk
0:00:26.4]} 39. Bh3 {[%clk 0:00:07.6]} 39... Bxg5 {[%clk 0:00:24.7]} 40. Bf1
{[%clk 0:00:07.8]} 40... Nf3 {[%clk 0:00:23.6]} 41. Kb2 {[%clk 0:00:06.2]} 41...
Nd2 {[%clk 0:00:20.3]} 42. Bd3 {[%clk 0:00:05.7]} 42... Bf6+ {[%clk 0:00:19.6]}
43. Kc2 {[%clk 0:00:06]} 43... Bc3 {[%clk 0:00:20]} 44. Bb5 {[%clk 0:00:05.4]}
44... a3 {[%clk 0:00:18.5]} 45. Bd3 {[%clk 0:00:05.6]} 45... Kg7 {[%clk
0:00:19]} 46. Kd1 {[%clk 0:00:05.2]} 46... Kf6 {[%clk 0:00:19.9]} 47. Ke2 {[%clk
0:00:05.5]} 47... Ke5 {[%clk 0:00:20.3]} 48. Ke3 {[%clk 0:00:05.7]} 48... b3
{[%clk 0:00:19]} 49. axb3 {[%clk 0:00:04.2]} 49... a2 {[%clk 0:00:19.1]} 0-1

[Event "Early-Titled-Tuesday-Blitz-May-14-2024"]
[Site "Chess.com"]
[Date "2024.05.14"]
[Round "3"]
[White "sergiochess83"]
[Black "lefonghua"]
[Result "0-1"]
[WhiteElo "2865"]
[BlackElo "2615"]
[TimeControl "180+1"]
[EndTime "8:29:52 PDT"]
[Termination "lefonghua won on time"]

1. d4 {[%clk 0:02:55]} 1... Nf6 {[%clk 0:02:59.1]} 2. c4 {[%clk 0:02:54.5]} 2...
c5 {[%clk 0:02:58.4]} 3. d5 {[%clk 0:02:54.3]} 3... e6 {[%clk 0:02:58.9]} 4. Nc3
{[%clk 0:02:53.7]} 4... exd5 {[%clk 0:02:59.4]} 5. cxd5 {[%clk 0:02:54.5]} 5...
d6 {[%clk 0:03:00]} 6. Nf3 {[%clk 0:02:54.8]} 6... g6 {[%clk 0:03:00.6]} 7. h3
{[%clk 0:02:55.2]} 7... Bg7 {[%clk 0:03:01]} 8. Bf4 {[%clk 0:02:55.4]} 8... a6
{[%clk 0:03:00.8]} 9. a4 {[%clk 0:02:54.5]} 9... O-O {[%clk 0:03:00.5]} 10. e3
{[%clk 0:02:54.8]} 10... Ne8 {[%clk 0:03:00.6]} 11. Be2 {[%clk 0:02:54.4]} 11...
Nd7 {[%clk 0:02:59.9]} 12. O-O {[%clk 0:02:54.3]} 12... Qe7 {[%clk 0:03:00.2]}
13. Rb1 {[%clk 0:02:53.4]} 13... Rb8 {[%clk 0:02:53.5]} 14. Qc2 {[%clk
0:02:49.3]} 14... Nc7 {[%clk 0:02:39.4]} 15. b4 {[%clk 0:02:46.2]} 15... Bxc3
{[%clk 0:02:28.9]} 16. Qxc3 {[%clk 0:02:31]} 16... Nxd5 {[%clk 0:02:27.9]} 17.
Qd2 {[%clk 0:02:27.8]} 17... Nxf4 {[%clk 0:02:23.3]} 18. exf4 {[%clk 0:02:28.7]}
18... Nf6 {[%clk 0:02:02.5]} 19. bxc5 {[%clk 0:02:21.4]} 19... dxc5 {[%clk
0:02:01.4]} 20. Bc4 {[%clk 0:02:20]} 20... Bf5 {[%clk 0:01:53.1]} 21. Rbe1
{[%clk 0:02:05]} 21... Qc7 {[%clk 0:01:46.2]} 22. a5 {[%clk 0:02:03.1]} 22...
Ne4 {[%clk 0:01:42.2]} 23. Qa2 {[%clk 0:01:54.6]} 23... Qxf4 {[%clk 0:01:33.3]}
24. Re3 {[%clk 0:01:53.9]} 24... Nd6 {[%clk 0:01:24.8]} 25. Bd5 {[%clk
0:01:54.3]} 25... Rbe8 {[%clk 0:01:13]} 26. Rfe1 {[%clk 0:01:52.9]} 26... Rxe3
{[%clk 0:01:13.1]} 27. Rxe3 {[%clk 0:01:46.6]} 27... c4 {[%clk 0:01:11.6]} 28.
g3 {[%clk 0:01:37.6]} 28... Qh6 {[%clk 0:01:07.6]} 29. h4 {[%clk 0:01:31]} 29...
Be6 {[%clk 0:01:01]} 30. Bxe6 {[%clk 0:01:24.7]} 30... fxe6 {[%clk 0:01:01.9]}
31. Ng5 {[%clk 0:01:23.3]} 31... Qh5 {[%clk 0:00:53.5]} 32. Qa1 {[%clk 0:01:08]}
32... Nf5 {[%clk 0:00:37.8]} 33. Nxe6 {[%clk 0:00:56.6]} 33... Qh6 {[%clk
0:00:23]} 34. Re5 {[%clk 0:00:44.3]} 34... Re8 {[%clk 0:00:22]} 35. Qc3 {[%clk
0:00:36.1]} 35... Nd6 {[%clk 0:00:14.9]} 36. Qd4 {[%clk 0:00:29.8]} 36... Nf7
{[%clk 0:00:11]} 37. Re1 {[%clk 0:00:25.9]} 37... g5 {[%clk 0:00:09.5]} 38. Qxc4
{[%clk 0:00:16.2]} 38... gxh4 {[%clk 0:00:06.6]} 39. Re4 {[%clk 0:00:16.5]}
39... Qf6 {[%clk 0:00:03]} 40. gxh4 {[%clk 0:00:13.6]} 40... Nd6 {[%clk
0:00:01.5]} 41. Ng5+ {[%clk 0:00:03.2]} 41... Nxc4 {[%clk 0:00:01.2]} 42. Rxe8+
{[%clk 0:00:02.9]} 42... Kg7 {[%clk 0:00:01.8]} 0-1

[Event "Early-Titled-Tuesday-Blitz-May-14-2024"]
[Site "Chess.com"]
[Date "2024.05.14"]
[Round "3"]
[White "Sokoloco"]
[Black "laysa_latifah"]
[Result "0-1"]
[WhiteElo "2759"]
[BlackElo "2544"]
[TimeControl "180+1"]
[EndTime "8:29:54 PDT"]
[Termination "laysa_latifah won on time"]

1. b3 {[%clk 0:02:55.3]} 1... Nf6 {[%clk 0:02:55.1]} 2. Bb2 {[%clk 0:02:54.5]}
2... g6 {[%clk 0:02:54.2]} 3. c4 {[%clk 0:02:54.7]} 3... Bg7 {[%clk 0:02:54]} 4.
g3 {[%clk 0:02:55.4]} 4... O-O {[%clk 0:02:54.1]} 5. Bg2 {[%clk 0:02:56]} 5...
c6 {[%clk 0:02:53.3]} 6. Nf3 {[%clk 0:02:54.8]} 6... d5 {[%clk 0:02:53.7]} 7.
O-O {[%clk 0:02:54.3]} 7... Nbd7 {[%clk 0:02:53.1]} 8. Qc2 {[%clk 0:02:32.3]}
8... Re8 {[%clk 0:02:49.9]} 9. Ne5 {[%clk 0:02:31.4]} 9... Nxe5 {[%clk
0:02:26.9]} 10. Bxe5 {[%clk 0:02:28.2]} 10... Bf5 {[%clk 0:02:25.6]} 11. d3
{[%clk 0:02:20.5]} 11... d4 {[%clk 0:02:24.1]} 12. Nd2 {[%clk 0:02:06.5]} 12...
Rc8 {[%clk 0:02:20.8]} 13. c5 {[%clk 0:02:05.2]} 13... Nd5 {[%clk 0:02:15.5]}
14. Bxg7 {[%clk 0:02:02.2]} 14... Kxg7 {[%clk 0:02:16.4]} 15. Qb2 {[%clk
0:01:52.4]} 15... e5 {[%clk 0:02:13]} 16. Nc4 {[%clk 0:01:51.2]} 16... Rb8
{[%clk 0:01:50.2]} 17. f4 {[%clk 0:01:15]} 17... Qe7 {[%clk 0:01:01.7]} 18. Bxd5
{[%clk 0:00:56.2]} 18... cxd5 {[%clk 0:01:01.7]} 19. Nd6 {[%clk 0:00:56.9]}
19... Bh3 {[%clk 0:00:58.1]} 20. fxe5 {[%clk 0:00:50.5]} 20... Bxf1 {[%clk
0:00:56.2]} 21. Rxf1 {[%clk 0:00:46.2]} 21... Rf8 {[%clk 0:00:55.7]} 22. Qxd4
{[%clk 0:00:42.4]} 22... Kg8 {[%clk 0:00:50.5]} 23. Qxd5 {[%clk 0:00:38.4]}
23... Qe6 {[%clk 0:00:50.2]} 24. Qd4 {[%clk 0:00:27.7]} 24... Rbd8 {[%clk
0:00:40.6]} 25. Rf6 {[%clk 0:00:25.9]} 25... Qe7 {[%clk 0:00:39.7]} 26. Qe4
{[%clk 0:00:21.8]} 26... Qc7 {[%clk 0:00:36]} 27. d4 {[%clk 0:00:21]} 27... Rd7
{[%clk 0:00:31.8]} 28. e6 {[%clk 0:00:19.5]} 28... fxe6 {[%clk 0:00:20]} 29.
Qxe6+ {[%clk 0:00:18.2]} 29... Kg7 {[%clk 0:00:18.6]} 30. Ne8+ {[%clk
0:00:12.5]} 30... Rxe8 {[%clk 0:00:18.7]} 31. Qxe8 {[%clk 0:00:12.8]} 31... Kxf6
{[%clk 0:00:19.1]} 32. e3 {[%clk 0:00:10.6]} 32... Re7 {[%clk 0:00:18.9]} 33.
Qf8+ {[%clk 0:00:10.9]} 33... Rf7 {[%clk 0:00:18.2]} 34. Qh8+ {[%clk 0:00:11]}
34... Ke7 {[%clk 0:00:18.2]} 35. b4 {[%clk 0:00:04.3]} 35... Qd7 {[%clk
0:00:18.4]} 36. Qe5+ {[%clk 0:00:04.2]} 36... Qe6 {[%clk 0:00:18.7]} 37. Qc7+
{[%clk 0:00:04.4]} 37... Kf6 {[%clk 0:00:18.6]} 38. Qf4+ {[%clk 0:00:02.5]}
38... Kg7 {[%clk 0:00:19]} 39. Qg5 {[%clk 0:00:03.3]} 39... Rf5 {[%clk
0:00:18.2]} 40. Qd8 {[%clk 0:00:02.3]} 40... Qxe3+ {[%clk 0:00:17.5]} 41. Kg2
{[%clk 0:00:03]} 41... Qf3+ {[%clk 0:00:17.9]} 0-1

[Event "Early-Titled-Tuesday-Blitz-May-14-2024"]
[Site "Chess.com"]
[Date "2024.05.14"]
[Round "3"]
[White "LuisFSiles"]
[Black "Niilo1"]
[Result "0-1"]
[WhiteElo "2444"]
[BlackElo "2299"]
[TimeControl "180+1"]
[EndTime "8:29:54 PDT"]
[Termination "Niilo1 won by checkmate"]

1. e4 {[%clk 0:03:00.9]} 1... c5 {[%clk 0:02:54.7]} 2. Nf3 {[%clk 0:03:00.4]}
2... Nc6 {[%clk 0:02:48.1]} 3. c3 {[%clk 0:02:59.7]} 3... Nf6 {[%clk 0:02:47.5]}
4. e5 {[%clk 0:02:59.4]} 4... Nd5 {[%clk 0:02:48.1]} 5. d4 {[%clk 0:03:00.2]}
5... cxd4 {[%clk 0:02:47.1]} 6. cxd4 {[%clk 0:03:01.1]} 6... d6 {[%clk
0:02:46.5]} 7. Bc4 {[%clk 0:03:00.3]} 7... Nb6 {[%clk 0:02:46.2]} 8. Bb5 {[%clk
0:02:59.3]} 8... dxe5 {[%clk 0:02:46]} 9. Nxe5 {[%clk 0:02:59]} 9... Bd7 {[%clk
0:02:45.8]} 10. Nxd7 {[%clk 0:02:58.9]} 10... Qxd7 {[%clk 0:02:44.3]} 11. Nc3
{[%clk 0:02:58.9]} 11... e6 {[%clk 0:02:42.4]} 12. Qg4 {[%clk 0:02:57.9]} 12...
a6 {[%clk 0:02:38]} 13. Bxc6 {[%clk 0:02:54]} 13... bxc6 {[%clk 0:02:37.9]} 14.
O-O {[%clk 0:02:50.2]} 14... h5 {[%clk 0:02:34.1]} 15. Qf3 {[%clk 0:02:48.6]}
15... Be7 {[%clk 0:02:25.6]} 16. Be3 {[%clk 0:02:45.4]} 16... h4 {[%clk
0:02:18.3]} 17. h3 {[%clk 0:02:42.1]} 17... Nd5 {[%clk 0:02:18.1]} 18. Rfc1
{[%clk 0:02:30.5]} 18... O-O {[%clk 0:02:04.6]} 19. Ne4 {[%clk 0:02:23.7]} 19...
Nxe3 {[%clk 0:01:52.8]} 20. fxe3 {[%clk 0:02:01.5]} 20... Qd5 {[%clk 0:01:51.6]}
21. Rc2 {[%clk 0:01:44.8]} 21... Rab8 {[%clk 0:01:47.4]} 22. b3 {[%clk
0:01:43.7]} 22... Rfc8 {[%clk 0:01:32.1]} 23. Nc5 {[%clk 0:01:34]} 23... a5
{[%clk 0:01:24.3]} 24. Rac1 {[%clk 0:01:27.5]} 24... Bg5 {[%clk 0:00:48.9]} 25.
Ne4 {[%clk 0:01:18.2]} 25... Be7 {[%clk 0:00:34.1]} 26. Rc4 {[%clk 0:01:17.6]}
26... Rb4 {[%clk 0:00:32.5]} 27. Nc3 {[%clk 0:01:02.6]} 27... Rxc4 {[%clk
0:00:30.1]} 28. bxc4 {[%clk 0:01:01.5]} 28... Qxc4 {[%clk 0:00:29.5]} 29. Ne2
{[%clk 0:01:01.2]} 29... Qd5 {[%clk 0:00:27.8]} 30. e4 {[%clk 0:00:58.4]} 30...
Qxa2 {[%clk 0:00:25]} 31. d5 {[%clk 0:00:57.4]} 31... exd5 {[%clk 0:00:20.6]}
32. exd5 {[%clk 0:00:56.2]} 32... Bg5 {[%clk 0:00:19.4]} 33. Rxc6 {[%clk
0:00:54.3]} 33... Rxc6 {[%clk 0:00:19]} 34. dxc6 {[%clk 0:00:54.4]} 34... Qa1+
{[%clk 0:00:19.5]} 35. Kf2 {[%clk 0:00:53.8]} 35... Qe5 {[%clk 0:00:17.2]} 36.
Nc3 {[%clk 0:00:48.3]} 36... Qc5+ {[%clk 0:00:15.2]} 37. Ke2 {[%clk 0:00:48.4]}
37... a4 {[%clk 0:00:14.3]} 38. Qe4 {[%clk 0:00:26.8]} 38... Qxc3 {[%clk
0:00:11.3]} 39. Qe8+ {[%clk 0:00:22.2]} 39... Kh7 {[%clk 0:00:11.4]} 40. Qe4+
{[%clk 0:00:21.9]} 40... g6 {[%clk 0:00:11.7]} 41. Qe8 {[%clk 0:00:20.9]} 41...
Kg7 {[%clk 0:00:11.5]} 42. Qd7 {[%clk 0:00:19.2]} 42... Bf4 {[%clk 0:00:08.7]}
43. c7 {[%clk 0:00:15.8]} 43... Qxc7 {[%clk 0:00:08.1]} 44. Qxa4 {[%clk
0:00:15.9]} 44... Qe5+ {[%clk 0:00:07.9]} 45. Kf3 {[%clk 0:00:15.7]} 45... Qe3+
{[%clk 0:00:08.1]} 46. Kg4 {[%clk 0:00:16.1]} 46... Qg3# {[%clk 0:00:09]} 0-1

[Event "Early-Titled-Tuesday-Blitz-May-14-2024"]
[Site "Chess.com"]
[Date "2024.05.14"]
[Round "3"]
[White "AlphaGoosee"]
[Black "pirulillo"]
[Result "1-0"]
[WhiteElo "2642"]
[BlackElo "2433"]
[TimeControl "180+1"]
[EndTime "8:29:55 PDT"]
[Termination "AlphaGoosee won on time"]

1. e4 {[%clk 0:03:00.6]} 1... c5 {[%clk 0:02:53.3]} 2. Nf3 {[%clk 0:02:59.3]}
2... e6 {[%clk 0:02:49.2]} 3. d4 {[%clk 0:02:59.1]} 3... cxd4 {[%clk 0:02:43.1]}
4. Nxd4 {[%clk 0:02:57.7]} 4... Nf6 {[%clk 0:02:36.5]} 5. Nc3 {[%clk 0:02:55.8]}
5... Nc6 {[%clk 0:02:37]} 6. a3 {[%clk 0:02:54.2]} 6... d6 {[%clk 0:02:31.4]} 7.
Be3 {[%clk 0:02:53.5]} 7... Be7 {[%clk 0:02:29.6]} 8. Qe2 {[%clk 0:02:53]} 8...
O-O {[%clk 0:02:29.3]} 9. O-O-O {[%clk 0:02:51.9]} 9... Qc7 {[%clk 0:02:29.8]}
10. g4 {[%clk 0:02:49.8]} 10... a6 {[%clk 0:02:28.7]} 11. g5 {[%clk 0:02:46.4]}
11... Nd7 {[%clk 0:02:28.5]} 12. h4 {[%clk 0:02:44.3]} 12... b5 {[%clk
0:02:27.1]} 13. h5 {[%clk 0:02:33.1]} 13... Rb8 {[%clk 0:02:09]} 14. g6 {[%clk
0:02:14.5]} 14... Nxd4 {[%clk 0:01:44.5]} 15. gxf7+ {[%clk 0:01:59.8]} 15...
Rxf7 {[%clk 0:01:41.5]} 16. Bxd4 {[%clk 0:01:57.6]} 16... Ne5 {[%clk 0:01:32.5]}
17. Rg1 {[%clk 0:01:27.3]} 17... h6 {[%clk 0:01:25.3]} 18. Be3 {[%clk
0:01:16.4]} 18... Kh7 {[%clk 0:01:17.5]} 19. Bh3 {[%clk 0:01:08.4]} 19... b4
{[%clk 0:01:06.7]} 20. axb4 {[%clk 0:01:07.1]} 20... Rxb4 {[%clk 0:01:07.6]} 21.
Rd4 {[%clk 0:01:00.4]} 21... a5 {[%clk 0:00:46.8]} 22. Qd1 {[%clk 0:00:46.5]}
22... Nc4 {[%clk 0:00:37.2]} 23. Qg4 {[%clk 0:00:32.4]} 23... Nxe3 {[%clk
0:00:32.5]} 24. Qg6+ {[%clk 0:00:28.5]} 24... Kg8 {[%clk 0:00:31.9]} 25. fxe3
{[%clk 0:00:29.1]} 25... Bg5 {[%clk 0:00:27.6]} 26. Rg3 {[%clk 0:00:21.1]} 26...
Qe7 {[%clk 0:00:19.7]} 27. Rxb4 {[%clk 0:00:17]} 27... axb4 {[%clk 0:00:19]} 28.
Nb5 {[%clk 0:00:17]} 28... Bb7 {[%clk 0:00:12]} 29. Bxe6 {[%clk 0:00:14.9]}
29... Bxe4 {[%clk 0:00:11.2]} 30. Qxe4 {[%clk 0:00:13.3]} 30... Kh8 {[%clk
0:00:09]} 31. Bd5 {[%clk 0:00:08.9]} 31... Rf1+ {[%clk 0:00:05.6]} 32. Kd2
{[%clk 0:00:08.6]} 32... Qf8 {[%clk 0:00:06.5]} 33. Rf3 {[%clk 0:00:06.4]} 33...
Rxf3 {[%clk 0:00:04.1]} 34. Qxf3 {[%clk 0:00:07.2]} 34... Qe7 {[%clk 0:00:04.6]}
35. Qe4 {[%clk 0:00:05.5]} 35... Qf8 {[%clk 0:00:03.6]} 36. Nd4 {[%clk
0:00:04.9]} 36... Qf2+ {[%clk 0:00:02.6]} 37. Ne2 {[%clk 0:00:03.6]} 1-0